[Event "Czech Open Rapid G1 2024"]
[Site "Pardubice"]
[Date "2024.07.18"]
[Round "7.18"]
[White "Lihotsky, Lukas"]
[Black "Mica, Marek"]
[Result "0-1"]
[Annotator "TA"]
[ECO "D24"]
[WhiteElo "2129"]
[BlackElo "2375"]
[PlyCount "62"]
[EventDate "2024.07.16"]
[EventType "swiss"]
[EventCountry "CZE"]
[SourceTitle "playchess.com"]
[Source "ChessBase"]
[SourceQuality "1"]
[TimeControl "1200+10"]

{[%evp 9,62,23,49,54,41,49,49,49,47,47,48,50,36,16,22,10,15,12,30,34,27,0,25,16,22,0,99,99,164,89,100,41,53,-155,-147,-148,-145,-127,-129,-146,-141,-329,-325,-475,-460,-508,-505,-583,-546,-775,-770,-719,-374,-783,-769]} 1. d4 {[%emt 0:00:03]} Nf6 {[%emt 0:00:01]} 2. c4 {[%emt 0:00:01]} e6 {[%emt 0:00:01]} 3. Nf3 {[%emt 0:00:03]} d5 {[%emt 0:00:01]} 4. Nc3 {[%emt 0:00:02]} dxc4 {[%emt 0:00:01]} 5. e4 {[%emt 0:00:17][%cal Be2e4,Be4e5][%mdl 32]} b5 {[%emt 0:00:07]} 6. e5 $1 {[%emt 0:00:03]} Nd5 {[%emt 0:00:01]} 7. Nxb5 {[%emt 0:00:02]} Nb6 {[%emt 0:00:01]} 8. Nc3 {[%emt 0:01:02] White is slightly better.} Nc6 {[%emt 0:00:06]} 9. Be2 {[%emt 0:00:52]} Be7 {[%emt 0:00:01]} 10. Be3 {[%emt 0:00:04]} O-O {[%emt 0:00:12]} 11. a3 {[%emt 0:00:53]} Rb8 {[%emt 0:00:08]} 12. O-O {[%emt 0:00:35]} Bb7 {[%emt 0:00:04]} 13. Qc2 {[%emt 0:00:11]} h6 {[%emt 0:01:08]} 14. Rad1 {[%emt 0:01:02][%cal Od4d5]} Na5 {[%emt 0:00:08]} 15. Ne4 {[%emt 0:01:13]} Bd5 {[%emt 0:00:40]} 16. Nfd2 {[%emt 0:01:53]} Qd7 {[%emt 0:00:07]} 17. Qc3 {[%emt 0:05:14]} Qb5 {[%emt 0:01:01]} (17... Nb3 $11 18. Nxb3 (18. Bxc4 $2 {loses.} Nxc4 19. Bxh6 Ncxd2 $19) 18... Na4) 18. b4 $16 {[%emt 0:01:56]} Nb7 {[%emt 0:02:35]} (18... Nc6 $16) 19. Bf4 {[%emt 0:02:38]} (19. Nf6+ $18 Bxf6 20. exf6) 19... Qc6 {[%emt 0:02:11]} 20. Bf3 {[%emt 0:01:15]} (20. Nf6+ $16 gxf6 21. Qh3 (21. Bxh6 Kh7 $11) 21... Bxg2 22. Qxg2+ Qxg2+ 23. Kxg2) 20... a5 {[%emt 0:00:47]} 21. Nc5 $2 {[%emt 0:00:18] [#]} ({But not} 21. bxa5 Na4 22. Qe3 Kh7 $11) (21. Qe3 $14 {stays ahead.}) 21... axb4 {[%emt 0:00:23]} 22. axb4 {[%emt 0:00:08]} Bxf3 {[%emt 0:00:14]} 23. Qxf3 {[%emt 0:00:50]} Qxf3 {[%emt 0:00:09]} 24. Nxf3 {[%emt 0:00:02]} Nd5 {[%emt 0:00:10][%csl LRb4,LRf4]} 25. Bg3 $2 {[%emt 0:00:23] [#] This costs White the game.} (25. Be3 $17) 25... Bxc5 $19 {[%emt 0:00:42]} ({Weaker is} 25... Nxb4 26. Nd7 $17) 26. bxc5 {[%emt 0:00:09]} (26. dxc5 {was worth a try.} Nxb4 27. Rc1) 26... Na5 {[%emt 0:00:06]} 27. Rc1 {[%emt 0:01:30]} Rb2 {[%emt 0:00:05] Prevents Nd2. Strongly threatening ...c3.} 28. Rfd1 {[%emt 0:00:14] White is weak on the light squares} Rfb8 {[%emt 0:00:50] ...c3 is the strong threat.} 29. Kf1 {[%emt 0:00:33]} c3 {[%emt 0:00:32]} 30. Ne1 {[%emt 0:00:25]} Ra2 {[%emt 0:00:50]} 31. Nd3 $2 {[%emt 0:00:26]} (31. Rd3) 31... Nb3 {[%emt 0:00:13][%csl LRc1,LRd4] Weighted Error Value: White=0.63/Black=0.31.  Loses game:     	White=1     	---        Mistake:       	White=4     	Black=2      Inaccurate:     	White=2     	---        OK:         	White=6     	Black=10     Best:        	White=2     	Black=2} 0-1

[Event "Czech Open Rapid G1 2024"]
[Site "Pardubice"]
[Date "2024.07.18"]
[Round "7.19"]
[White "Jurek, Josef"]
[Black "Kopriva, Martin"]
[Result "1-0"]
[Annotator "RC"]
[ECO "A80"]
[WhiteElo "2200"]
[BlackElo "2159"]
[PlyCount "97"]
[EventDate "2024.07.16"]
[EventType "swiss"]
[EventCountry "CZE"]
[SourceTitle "playchess.com"]
[Source "ChessBase"]
[SourceQuality "1"]
[TimeControl "1200+10"]

1. Nf3 {[%emt 0:00:10]} g6 {[%emt 0:00:12]} 2. d4 {[%emt 0:00:05]} f5 {[%emt 0:00:05]} 3. h4 {[%emt 0:00:55]} Nf6 {[%emt 0:00:47]} 4. h5 {[%emt 0:00:02]} Nxh5 {[%emt 0:01:10]} 5. Rxh5 {[%emt 0:00:02]} gxh5 {[%emt 0:00:08]} 6. e4 {[%emt 0:00:03]} Bg7 {[%emt 0:03:01]} 7. Nh4 {[%emt 0:01:40]} O-O {[%emt 0:00:53]} 8. Nxf5 {[%emt 0:00:24]} e5 {[%emt 0:02:38]} 9. Qxh5 {[%emt 0:01:57]} Qf6 {[%emt 0:02:38]} 10. Bg5 {[%emt 0:04:43]} Qf7 {[%emt 0:00:26]} 11. Ne7+ {[%emt 0:03:23]} Kh8 {[%emt 0:00:25]} 12. Qxf7 {[%emt 0:00:03]} Rxf7 {[%emt 0:00:01]} 13. Nxc8 {[%emt 0:00:03]} Nc6 {[%emt 0:00:49]} 14. Bc4 {[%emt 0:00:08]} Bf6 {[%emt 0:04:38]} 15. Bxf7 {[%emt 0:02:37]} Bxg5 {[%emt 0:00:05]} 16. dxe5 {[%emt 0:01:13]} Nxe5 {[%emt 0:01:57]} 17. Bh5 {[%emt 0:00:14]} Rxc8 {[%emt 0:01:35]} 18. g3 {[%emt 0:00:30]} Bc1 {[%emt 0:00:14]} 19. Nd2 {[%emt 0:00:30]} Bxb2 {[%emt 0:00:12]} 20. Rb1 {[%emt 0:00:39]} Bc3 {[%emt 0:00:01]} 21. Be2 {[%emt 0:00:58]} b6 {[%emt 0:00:27]} 22. Rb3 {[%emt 0:00:28]} Bd4 {[%emt 0:00:26]} 23. f4 {[%emt 0:00:18]} Nc6 {[%emt 0:00:08]} 24. Bg4 {[%emt 0:00:38]} Rd8 {[%emt 0:00:13]} 25. e5 {[%emt 0:00:24]} Kg7 {[%emt 0:00:34]} 26. Nf3 {[%emt 0:00:28]} a5 {[%emt 0:00:20]} 27. Rd3 {[%emt 0:00:18]} Bc5 {[%emt 0:00:14]} 28. Rxd7+ {[%emt 0:00:18]} Rxd7 {[%emt 0:00:05]} 29. Bxd7 {[%emt 0:00:03]} Nb4 {[%emt 0:00:05]} 30. Kd2 {[%emt 0:00:27]} Nxa2 {[%emt 0:00:14]} 31. f5 {[%emt 0:00:23]} h6 {[%emt 0:00:05]} 32. Be6 {[%emt 0:00:26]} Bb4+ {[%emt 0:00:16]} 33. Kd3 {[%emt 0:00:15]} Nc3 {[%emt 0:00:17]} 34. f6+ {[%emt 0:00:09]} Kf8 {[%emt 0:00:07]} 35. Nh4 {[%emt 0:00:10]} Nd1 {[%emt 0:00:21]} 36. Ng6+ {[%emt 0:00:14]} Ke8 {[%emt 0:00:01]} 37. Bd5 {[%emt 0:00:15]} Nf2+ {[%emt 0:00:16]} 38. Ke2 {[%emt 0:00:15]} Ng4 {[%emt 0:00:08]} 39. Kf3 {[%emt 0:00:05]} h5 {[%emt 0:00:10]} 40. Kf4 {[%emt 0:00:17]} a4 {[%emt 0:00:14]} 41. Kf5 {[%emt 0:00:06]} Ne3+ {[%emt 0:00:06]} 42. Ke6 {[%emt 0:00:03]} Nxd5 {[%emt 0:00:15]} 43. Kxd5 {[%emt 0:00:07]} Kf7 {[%emt 0:00:08]} 44. Nh8+ {[%emt 0:00:41]} Kf8 {[%emt 0:00:06]} 45. Kc4 {[%emt 0:00:06]} a3 {[%emt 0:00:03]} 46. Kb3 {[%emt 0:00:01]} b5 {[%emt 0:00:14]} 47. e6 {[%emt 0:00:07]} a2 {[%emt 0:00:18]} 48. Kxa2 {[%emt 0:00:08]} Bc3 {[%emt 0:00:03]} 49. Ng6+ {[%emt 0:00:05]} 1-0

[Event "Czech Open Rapid G1 2024"]
[Site "Pardubice"]
[Date "2024.07.18"]
[Round "7.20"]
[White "Shilon Rahav, Eliran"]
[Black "Brendel, Oliver"]
[Result "1-0"]
[Annotator "RC"]
[ECO "B23"]
[WhiteElo "2055"]
[BlackElo "2291"]
[PlyCount "92"]
[EventDate "2024.07.16"]
[EventType "swiss"]
[EventCountry "CZE"]
[SourceTitle "playchess.com"]
[Source "ChessBase"]
[SourceQuality "1"]
[TimeControl "1200+10"]

1. e4 {[%emt 0:00:01]} c5 {[%emt 0:00:03]} 2. Nc3 {[%emt 0:00:02]} Nc6 {[%emt 0:00:05]} 3. Bb5 {[%emt 0:00:03]} Nd4 {[%emt 0:00:04]} 4. Nf3 {[%emt 0:00:03]} g6 {[%emt 0:00:05]} 5. Bc4 {[%emt 0:00:04]} Bg7 {[%emt 0:00:04]} 6. Nxd4 {[%emt 0:00:06]} cxd4 {[%emt 0:00:01]} 7. Qf3 {[%emt 0:00:03]} Nf6 {[%emt 0:00:13]} 8. e5 {[%emt 0:00:04]} dxc3 {[%emt 0:00:17]} 9. dxc3 {[%emt 0:00:03]} Qb6 {[%emt 0:00:21]} 10. exf6 {[%emt 0:00:08]} Qxf6 {[%emt 0:00:07]} 11. Qe4 {[%emt 0:00:52]} O-O {[%emt 0:00:39]} 12. Be3 {[%emt 0:00:14]} d6 {[%emt 0:03:31]} 13. O-O-O {[%emt 0:00:41]} Qe5 {[%emt 0:02:15]} 14. Qxe5 {[%emt 0:00:53]} Bxe5 {[%emt 0:00:04]} 15. Bh6 {[%emt 0:00:10]} Re8 {[%emt 0:04:28]} 16. Bb5 {[%emt 0:01:09]} Rd8 {[%emt 0:00:02]} 17. Rhe1 {[%emt 0:00:02]} Bf6 {[%emt 0:00:35]} 18. Be3 {[%emt 0:00:50]} Be6 {[%emt 0:00:30]} 19. Bd4 {[%emt 0:01:53]} Kg7 {[%emt 0:00:15]} 20. Rd3 {[%emt 0:00:50]} a6 {[%emt 0:02:52]} 21. Ba4 {[%emt 0:00:06]} b5 {[%emt 0:01:00]} 22. Bb3 {[%emt 0:00:05]} Bxb3 {[%emt 0:01:11]} 23. cxb3 {[%emt 0:00:58]} Bxd4 {[%emt 0:01:01]} 24. Rxd4 {[%emt 0:00:07]} Rd7 {[%emt 0:00:52]} 25. a4 {[%emt 0:00:17]} Rc8 {[%emt 0:00:26]} 26. Kd2 {[%emt 0:00:24]} Rc5 {[%emt 0:00:30]} 27. b4 {[%emt 0:01:00]} Rf5 {[%emt 0:00:29]} 28. f3 {[%emt 0:00:16]} h5 {[%emt 0:01:26]} 29. b3 {[%emt 0:01:39]} Kf6 {[%emt 0:00:12]} 30. c4 {[%emt 0:00:29]} Rb7 {[%emt 0:00:20]} 31. Kc3 {[%emt 0:00:13]} g5 {[%emt 0:00:10]} 32. Re3 {[%emt 0:00:21]} Re5 {[%emt 0:00:51]} 33. Rxe5 {[%emt 0:01:35]} dxe5 {[%emt 0:00:20]} 34. Rd5 {[%emt 0:00:04]} e6 {[%emt 0:00:13]} 35. Rc5 {[%emt 0:00:06]} Ke7 {[%emt 0:00:10]} 36. Rxe5 {[%emt 0:00:13]} f6 {[%emt 0:00:03]} 37. Rc5 {[%emt 0:00:17]} Kd6 {[%emt 0:00:14]} 38. axb5 {[%emt 0:01:54]} axb5 {[%emt 0:00:02]} 39. Rxb5 {[%emt 0:00:02]} Rxb5 {[%emt 0:00:04]} 40. cxb5 {[%emt 0:00:01]} Kc7 {[%emt 0:00:03]} 41. Kd4 {[%emt 0:02:11]} Kb6 {[%emt 0:00:08]} 42. Kc4 {[%emt 0:00:02]} g4 {[%emt 0:00:41]} 43. f4 {[%emt 0:00:22]} h4 {[%emt 0:00:02]} 44. g3 {[%emt 0:00:02]} h3 {[%emt 0:00:01]} 45. Kd4 {[%emt 0:00:57]} Kxb5 {[%emt 0:00:09]} 46. Kc3 {[%emt 0:00:01]} f5 {[%emt 0:00:00]} 1-0

[Event "Czech Open Rapid G1 2024"]
[Site "Pardubice"]
[Date "2024.07.18"]
[Round "7.21"]
[White "Ptacek, Lubos"]
[Black "Mojzis, Jaroslav"]
[Result "1-0"]
[Annotator "RC"]
[ECO "C54"]
[WhiteElo "2036"]
[BlackElo "2068"]
[PlyCount "93"]
[EventDate "2024.07.16"]
[EventType "swiss"]
[EventCountry "CZE"]
[SourceTitle "playchess.com"]
[Source "ChessBase"]
[SourceQuality "1"]
[TimeControl "1200+10"]

1. e4 {[%emt 0:00:06]} e5 {[%emt 0:00:01]} 2. Nf3 {[%emt 0:00:04]} Nc6 {[%emt 0:00:01]} 3. Bc4 {[%emt 0:00:04]} Bc5 {[%emt 0:00:01]} 4. c3 {[%emt 0:00:04]} Nf6 {[%emt 0:00:02]} 5. d3 {[%emt 0:00:06]} O-O {[%emt 0:00:02]} 6. b4 {[%emt 0:00:10]} Be7 {[%emt 0:00:03]} 7. O-O {[%emt 0:00:49]} d5 {[%emt 0:00:26]} 8. exd5 {[%emt 0:00:16]} Nxd5 {[%emt 0:00:02]} 9. Bb2 {[%emt 0:00:33]} Nb6 {[%emt 0:04:00]} 10. Bb3 {[%emt 0:00:19]} Bd6 {[%emt 0:00:02]} 11. Nbd2 {[%emt 0:00:08]} h6 {[%emt 0:00:49]} 12. a4 {[%emt 0:00:28]} a5 {[%emt 0:01:36]} 13. b5 {[%emt 0:00:31]} Ne7 {[%emt 0:00:08]} 14. c4 {[%emt 0:00:23]} Ng6 {[%emt 0:00:46]} 15. Qc2 {[%emt 0:00:57]} Nd7 {[%emt 0:01:43]} 16. Ne4 {[%emt 0:00:24]} Bb4 {[%emt 0:01:44]} 17. Rad1 {[%emt 0:01:58]} Kh8 {[%emt 0:02:19]} 18. Bc3 {[%emt 0:00:57]} Bxc3 {[%emt 0:01:43]} 19. Qxc3 {[%emt 0:00:02]} Qe7 {[%emt 0:00:09]} 20. Rfe1 {[%emt 0:00:11]} f5 {[%emt 0:01:50]} 21. Ng3 {[%emt 0:00:05]} Qf6 {[%emt 0:01:26]} 22. Re2 {[%emt 0:01:14]} Re8 {[%emt 0:00:09]} 23. Rde1 {[%emt 0:00:03]} f4 {[%emt 0:01:13]} 24. Ne4 {[%emt 0:00:28]} Qf5 {[%emt 0:00:18]} 25. c5 {[%emt 0:01:13]} Nf6 {[%emt 0:00:55]} 26. b6 {[%emt 0:00:55]} Be6 {[%emt 0:00:39]} 27. bxc7 {[%emt 0:00:40]} Bxb3 {[%emt 0:00:19]} 28. Nd6 {[%emt 0:00:35]} Qe6 {[%emt 0:00:18]} 29. Nxe5 {[%emt 0:00:29]} Nxe5 {[%emt 0:01:03]} 30. Rxe5 {[%emt 0:00:01]} Qg8 {[%emt 0:00:17]} 31. Rxe8 {[%emt 0:00:47]} Nxe8 {[%emt 0:00:10]} 32. c8=Q {[%emt 0:00:36]} Rxc8 {[%emt 0:00:02]} 33. Nxc8 {[%emt 0:00:01]} Nf6 {[%emt 0:00:08]} 34. Nd6 {[%emt 0:01:10]} Bxa4 {[%emt 0:00:12]} 35. Qxa5 {[%emt 0:00:26]} Bc6 {[%emt 0:00:07]} 36. Qc7 {[%emt 0:01:09]} Qd5 {[%emt 0:00:14]} 37. Qc8+ {[%emt 0:00:23]} Ng8 {[%emt 0:00:20]} 38. Qg4 {[%emt 0:00:43]} Qxc5 {[%emt 0:00:22]} 39. Qxf4 {[%emt 0:01:14]} Nf6 {[%emt 0:00:17]} 40. d4 {[%emt 0:01:39]} Qb4 {[%emt 0:00:08]} 41. Ra1 {[%emt 0:00:26]} Qb3 {[%emt 0:00:24]} 42. h3 {[%emt 0:01:00]} Qd5 {[%emt 0:00:06]} 43. Ra8+ {[%emt 0:00:20]} Ng8 {[%emt 0:00:07]} 44. f3 {[%emt 0:00:36]} b5 {[%emt 0:00:15]} 45. Rd8 {[%emt 0:00:08]} Qe6 {[%emt 0:00:09]} 46. Qf5 {[%emt 0:01:16]} Qe3+ {[%emt 0:00:35]} 47. Kh2 {[%emt 0:00:06]} 1-0

[Event "Czech Open Rapid G1 2024"]
[Site "Pardubice"]
[Date "2024.07.18"]
[Round "7.22"]
[White "Dolensky, Filip"]
[Black "Sherman, Raem"]
[Result "1/2-1/2"]
[Annotator "RC"]
[ECO "C00"]
[WhiteElo "2085"]
[BlackElo "2358"]
[PlyCount "135"]
[EventDate "2024.07.16"]
[EventType "swiss"]
[EventCountry "CZE"]
[SourceTitle "playchess.com"]
[Source "ChessBase"]
[SourceQuality "1"]
[TimeControl "1200+10"]

1. e4 {[%emt 0:00:03]} e6 {[%emt 0:00:00]} 2. Nf3 {[%emt 0:00:01]} d5 {[%emt 0:00:01]} 3. e5 {[%emt 0:00:01]} c5 {[%emt 0:00:01]} 4. b4 {[%emt 0:00:01]} d4 {[%emt 0:00:04]} 5. b5 {[%emt 0:00:55]} b6 {[%emt 0:00:10]} 6. Bc4 {[%emt 0:00:38]} Bb7 {[%emt 0:00:02]} 7. d3 {[%emt 0:00:11]} Nd7 {[%emt 0:00:05]} 8. Qe2 {[%emt 0:00:09]} Qc7 {[%emt 0:00:04]} 9. Bf4 {[%emt 0:00:23]} h6 {[%emt 0:00:03]} 10. h4 {[%emt 0:00:02]} Ne7 {[%emt 0:00:11]} 11. h5 {[%emt 0:00:06]} O-O-O {[%emt 0:00:14]} 12. a4 {[%emt 0:00:04]} g5 {[%emt 0:00:12]} 13. hxg6 {[%emt 0:00:16]} Nxg6 {[%emt 0:00:02]} 14. Bg3 {[%emt 0:01:00]} Bg7 {[%emt 0:00:02]} 15. Rh5 {[%emt 0:00:05]} Kb8 {[%emt 0:01:36]} 16. Nbd2 {[%emt 0:00:09]} Ne7 {[%emt 0:00:13]} 17. O-O-O {[%emt 0:00:46]} Rdg8 {[%emt 0:01:16]} 18. Ne4 {[%emt 0:00:26]} Nf5 {[%emt 0:00:06]} 19. Rxf5 {[%emt 0:02:03]} exf5 {[%emt 0:00:01]} 20. Nd6 {[%emt 0:00:28]} Re8 {[%emt 0:06:44]} 21. e6 {[%emt 0:03:28]} f4 {[%emt 0:00:20]} 22. Nxe8 {[%emt 0:01:00]} Rxe8 {[%emt 0:00:03]} 23. Bh2 {[%emt 0:01:04]} fxe6 {[%emt 0:00:04]} 24. Re1 {[%emt 0:00:34]} e5 {[%emt 0:00:21]} 25. Bxf4 {[%emt 0:00:16]} Ka8 {[%emt 0:01:51]} 26. Bg3 {[%emt 0:00:41]} Qd6 {[%emt 0:00:08]} 27. Nd2 {[%emt 0:00:26]} Qg6 {[%emt 0:00:36]} 28. Ne4 {[%emt 0:00:19]} Rf8 {[%emt 0:00:06]} 29. Kb2 {[%emt 0:00:35]} Rf5 {[%emt 0:00:30]} 30. Ra1 {[%emt 0:01:38]} Bf8 {[%emt 0:00:26]} 31. Qe1 {[%emt 0:01:57]} Be7 {[%emt 0:00:47]} 32. a5 {[%emt 0:00:14]} Kb8 {[%emt 0:00:05]} 33. a6 {[%emt 0:00:45]} Ba8 {[%emt 0:00:17]} 34. Qe2 {[%emt 0:00:21]} Kc7 {[%emt 0:01:07]} 35. Re1 {[%emt 0:00:07]} Kd8 {[%emt 0:00:11]} 36. Rh1 {[%emt 0:00:22]} h5 {[%emt 0:00:13]} 37. Rh2 {[%emt 0:01:59]} Nf8 {[%emt 0:01:35]} 38. Bh4 {[%emt 0:01:33]} Bxh4 {[%emt 0:00:09]} 39. Rxh4 {[%emt 0:00:01]} Qxg2 {[%emt 0:00:51]} 40. Rxh5 {[%emt 0:00:19]} Bxe4 {[%emt 0:00:38]} 41. Rxf5 {[%emt 0:00:03]} Bxf5 {[%emt 0:00:02]} 42. Qxe5 {[%emt 0:00:01]} Qg6 {[%emt 0:00:20]} 43. Qb8+ {[%emt 0:00:48]} Bc8 {[%emt 0:00:02]} 44. Qxa7 {[%emt 0:00:02]} Nd7 {[%emt 0:02:23]} 45. Qa8 {[%emt 0:00:07]} Kc7 {[%emt 0:00:12]} 46. Qd5 {[%emt 0:00:35]} Kb8 {[%emt 0:00:22]} 47. f4 {[%emt 0:00:16]} Qf6 {[%emt 0:00:14]} 48. f5 {[%emt 0:00:20]} Ne5 {[%emt 0:00:07]} 49. Bb3 {[%emt 0:00:16]} Qe7 {[%emt 0:00:10]} 50. Qg8 {[%emt 0:00:16]} c4 {[%emt 0:00:40]} 51. Bxc4 {[%emt 0:00:15]} Nxc4+ {[%emt 0:00:06]} 52. Qxc4 {[%emt 0:00:07]} Qc7 {[%emt 0:01:12]} 53. Qxd4 {[%emt 0:00:15]} Bxf5 {[%emt 0:00:06]} 54. Qd5 {[%emt 0:00:05]} Bc8 {[%emt 0:00:11]} 55. c4 {[%emt 0:00:01]} Qe7 {[%emt 0:00:22]} 56. Kb3 {[%emt 0:00:18]} Ka7 {[%emt 0:00:11]} 57. Qc6 {[%emt 0:00:04]} Bg4 {[%emt 0:00:59]} 58. Qg2 {[%emt 0:00:22]} Bd1+ {[%emt 0:00:04]} 59. Ka2 {[%emt 0:00:07]} Be2 {[%emt 0:00:14]} 60. Qd5 {[%emt 0:00:07]} Bg4 {[%emt 0:00:17]} 61. Qg2 {[%emt 0:00:07]} Bf5 {[%emt 0:00:02]} 62. Qb7+ {[%emt 0:00:18]} Qxb7 {[%emt 0:00:02]} 63. axb7 {[%emt 0:00:01]} Bxd3 {[%emt 0:00:02]} 64. Kb3 {[%emt 0:00:01]} Kxb7 {[%emt 0:00:07]} 65. Kb4 {[%emt 0:00:01]} Kc7 {[%emt 0:00:06]} 66. c5 {[%emt 0:00:01]} bxc5+ {[%emt 0:00:01]} 67. Kxc5 {[%emt 0:00:01]} Bxb5 {[%emt 0:00:02]} 68. Kxb5 {[%emt 0:00:01]} 1/2-1/2

[Event "Czech Open Rapid G1 2024"]
[Site "Pardubice"]
[Date "2024.07.18"]
[Round "7.23"]
[White "Krak, Tomas"]
[Black "Karpinets, Andrian"]
[Result "1/2-1/2"]
[Annotator "RC"]
[ECO "D31"]
[WhiteElo "2229"]
[BlackElo "1759"]
[PlyCount "107"]
[EventDate "2024.07.16"]
[EventType "swiss"]
[EventCountry "CZE"]
[SourceTitle "playchess.com"]
[Source "ChessBase"]
[SourceQuality "1"]
[TimeControl "1200+10"]

1. Nf3 {[%emt 0:00:07]} d5 2. d4 {[%emt 0:00:10]} Nf6 {[%emt 0:01:33]} 3. c4 {[%emt 0:00:03]} e6 {[%emt 0:00:00]} 4. e3 {[%emt 0:00:07]} a6 {[%emt 0:00:00]} 5. cxd5 {[%emt 0:00:53]} exd5 {[%emt 0:00:00]} 6. Bd3 {[%emt 0:00:02]} Bd6 {[%emt 0:00:00]} 7. Nc3 {[%emt 0:00:01]} O-O {[%emt 0:00:00]} 8. Qc2 {[%emt 0:00:09]} Re8 {[%emt 0:00:00]} 9. Bd2 {[%emt 0:00:04]} c6 {[%emt 0:00:00]} 10. O-O-O {[%emt 0:01:08]} b5 {[%emt 0:00:00]} 11. Ng5 {[%emt 0:00:10]} h6 {[%emt 0:00:00]} 12. Nf3 {[%emt 0:00:57]} a5 {[%emt 0:02:23]} 13. e4 {[%emt 0:01:28]} b4 {[%emt 0:00:58]} 14. e5 {[%emt 0:00:03]} bxc3 {[%emt 0:00:03]} 15. Bxc3 {[%emt 0:00:02]} Ne4 {[%emt 0:00:50]} 16. exd6 {[%emt 0:00:02]} Qxd6 {[%emt 0:00:18]} 17. Ne5 {[%emt 0:01:54]} Ba6 {[%emt 0:05:31]} 18. f3 {[%emt 0:01:29]} Nxc3 {[%emt 0:02:05]} 19. Qxc3 {[%emt 0:00:32]} c5 {[%emt 0:02:44]} 20. Rhe1 {[%emt 0:01:07]} Bxd3 {[%emt 0:01:21]} 21. Nxd3 {[%emt 0:01:10]} Rxe1 {[%emt 0:03:26]} 22. Rxe1 {[%emt 0:00:03]} Nd7 {[%emt 0:01:21]} 23. dxc5 {[%emt 0:01:15]} Nxc5 {[%emt 0:00:10]} 24. Qxc5 {[%emt 0:01:06]} Qxc5+ {[%emt 0:00:01]} 25. Nxc5 {[%emt 0:00:02]} Rc8 {[%emt 0:00:00]} 26. Kd2 {[%emt 0:00:38]} Rxc5 {[%emt 0:00:02]} 27. Kd3 {[%emt 0:00:40]} a4 {[%emt 0:00:36]} 28. b4 {[%emt 0:01:20]} axb3 {[%emt 0:00:03]} 29. axb3 {[%emt 0:00:02]} Rb5 {[%emt 0:00:09]} 30. Kc3 {[%emt 0:00:05]} Rc5+ {[%emt 0:00:08]} 31. Kd3 {[%emt 0:00:09]} Rb5 {[%emt 0:00:01]} 32. Rb1 {[%emt 0:00:04]} Kf8 {[%emt 0:00:17]} 33. Kc3 {[%emt 0:00:21]} Ke7 {[%emt 0:00:05]} 34. Ra1 {[%emt 0:00:13]} Rc5+ {[%emt 0:00:04]} 35. Kd3 {[%emt 0:00:02]} Rb5 {[%emt 0:00:00]} 36. Kc3 {[%emt 0:00:16]} Rc5+ {[%emt 0:00:01]} 37. Kd3 {[%emt 0:00:12]} Rb5 {[%emt 0:00:06]} 38. Kc3 {[%emt 0:00:52]} Rc5+ {[%emt 0:00:16]} 39. Kd4 {[%emt 0:00:30]} Rb5 {[%emt 0:00:59]} 40. Ra3 {[%emt 0:00:31]} Kd6 {[%emt 0:00:12]} 41. Ra7 {[%emt 0:00:32]} Ke6 {[%emt 0:00:01]} 42. Kc3 {[%emt 0:00:28]} Rc5+ {[%emt 0:00:29]} 43. Kd4 {[%emt 0:02:16]} Rb5 {[%emt 0:00:11]} 44. Ra6+ {[%emt 0:00:04]} Ke7 {[%emt 0:00:05]} 45. Ra3 {[%emt 0:00:11]} Kd6 {[%emt 0:00:09]} 46. Ra7 {[%emt 0:00:32]} Ke6 {[%emt 0:00:07]} 47. Ra6+ {[%emt 0:00:05]} Ke7 {[%emt 0:00:02]} 48. Kc3 {[%emt 0:00:14]} Rc5+ {[%emt 0:00:04]} 49. Kb2 {[%emt 0:00:12]} d4 {[%emt 0:00:16]} 50. b4 {[%emt 0:00:02]} Rc4 {[%emt 0:00:30]} 51. Kb3 {[%emt 0:00:22]} Rc3+ {[%emt 0:00:02]} 52. Kb2 {[%emt 0:00:08]} Rc4 {[%emt 0:00:01]} 53. Kb3 {[%emt 0:00:12]} Rc3+ {[%emt 0:00:36]} 54. Kb2 {[%emt 0:01:52]} 1/2-1/2

[Event "Czech Open Rapid G1 2024"]
[Site "Pardubice"]
[Date "2024.07.18"]
[Round "7.24"]
[White "Freisler, Pavel"]
[Black "Filindash, Nikita"]
[Result "1-0"]
[Annotator "RC"]
[ECO "A09"]
[WhiteElo "2261"]
[BlackElo "2007"]
[PlyCount "55"]
[EventDate "2024.07.16"]
[EventType "swiss"]
[EventCountry "CZE"]
[SourceTitle "playchess.com"]
[Source "ChessBase"]
[SourceQuality "1"]
[TimeControl "1200+10"]

1. Nf3 {[%emt 0:00:14]} d5 {[%emt 0:00:01]} 2. c4 {[%emt 0:00:02]} e6 {[%emt 0:00:02]} 3. g3 {[%emt 0:00:11]} Nf6 {[%emt 0:00:01]} 4. Bg2 {[%emt 0:00:02]} d4 {[%emt 0:00:02]} 5. O-O {[%emt 0:00:13]} c5 {[%emt 0:00:02]} 6. d3 {[%emt 0:00:10]} Nc6 {[%emt 0:00:08]} 7. a3 {[%emt 0:00:05]} Bd6 {[%emt 0:03:11]} 8. e3 {[%emt 0:00:21]} O-O {[%emt 0:00:17]} 9. exd4 {[%emt 0:00:02]} cxd4 {[%emt 0:00:01]} 10. b4 {[%emt 0:00:03]} e5 {[%emt 0:01:20]} 11. Re1 {[%emt 0:00:09]} Re8 {[%emt 0:00:11]} 12. Nbd2 {[%emt 0:00:23]} Bg4 {[%emt 0:01:16]} 13. h3 {[%emt 0:00:54]} Bf5 {[%emt 0:00:05]} 14. Qb3 {[%emt 0:00:15]} Rc8 {[%emt 0:02:07]} 15. c5 {[%emt 0:00:39]} Bb8 {[%emt 0:00:03]} 16. Nc4 {[%emt 0:00:02]} Qd7 {[%emt 0:00:47]} 17. b5 {[%emt 0:01:12]} Nd8 {[%emt 0:01:41]} 18. Nfxe5 {[%emt 0:01:34]} Bxe5 {[%emt 0:02:47]} 19. Nxe5 {[%emt 0:00:07]} Qe6 {[%emt 0:01:41]} 20. Qxe6 {[%emt 0:00:37]} Rxe6 {[%emt 0:00:09]} 21. Bb2 {[%emt 0:04:18]} Rxc5 {[%emt 0:00:46]} 22. Bxd4 {[%emt 0:00:02]} Rxb5 {[%emt 0:00:04]} 23. g4 {[%emt 0:00:02]} Bg6 {[%emt 0:02:42]} 24. f4 {[%emt 0:00:03]} Rd6 {[%emt 0:01:09]} 25. Bxa7 {[%emt 0:00:04]} h6 {[%emt 0:00:50]} 26. f5 {[%emt 0:00:42]} Bh7 {[%emt 0:00:01]} 27. a4 {[%emt 0:00:33]} Ra5 {[%emt 0:00:24]} 28. Nc4 {[%emt 0:00:09]} 1-0